Workbook

Sheet Cockpit
A3: Bike | B3: =Parameter!C2 -> Create normal

Sheet TCX Commuter
B1: =A1 -> 0 | C1: Parameter verformelt | D1: Parameter verformelt | E1: Watt gleitender Durchschnitt | F1: Watt Berechnung | G1: P(rolling resistance) | H1: P(wind) | I1: P(gravity) | J1: P(acceleration)
B2: =A2 -> 0
B3: 0
B4: 0
B5: 0
B6: 0
B7: 0
B8: 0
B9: 0
B10: 0
B11: 0
B12: 0
B13: 0
B14: 0
B15: 0 | C15: =RIGHT(LEFT(A15,31),8) -> 
B16: 0
B17: 0 | C17: =RIGHT(LEFT(A17,34),10) -> 
B18: 0 | C18: =RIGHT(LEFT(A18,34),9) -> 
B19: 0
B20: 0 | C20: =RIGHT(LEFT(A20,26),4) ->  | E20: =IF(AND(E23>0,D23<=5),D23/Parameter!$G$11*60,IF(AND(E23>0,D23>5),D23/Parameter!$G$12*60,0)) -> 0
B21: 0
B22: 0
B23: =A23 -> 0 | C23: =IF(LEN(A23)=26,RIGHT(LEFT(A23,18),3),RIGHT(LEFT(A23,19),4)) ->  | E23: =F23 -> 0 | F23: =IF(SUM(G23:J23)<=0,0,SUM(G23:J23)) -> 0
B24: =A24 -> 0
B25: =A25 -> 0
B26: 0
B27: 0
B28: 0 | C28: =RIGHT(LEFT(A28,31),8) ->  | F28: =HOUR(D28)*60*60+MINUTE(D28)*60+SECOND(D28)-(HOUR(D15)*60*60+MINUTE(D15)*60+SECOND(D15)) -> 0
B29: 0
B30: 0 | C30: =RIGHT(LEFT(A30,34),10) -> 
B31: 0 | C31: =RIGHT(LEFT(A31,34),9) ->  | F31: =6371.1*((2*ASIN(SQRT((SIN((RADIANS(D17)-RADIANS(D30))/2)^2)+COS(RADIANS(D17))*COS(RADIANS(D30))*(SIN((RADIANS(D18)-RADIANS(D31))/2)^2)))))*1000 -> 0
B32: 0
B33: 0 | C33: =RIGHT(LEFT(A33,26),4) -> 
B34: 0
B35: 0
B36: =A36 -> 0 | C36: =IF(LEN(A36)=26,RIGHT(LEFT(A36,18),3),RIGHT(LEFT(A36,19),4)) ->  | E36: =AVERAGE(F23*1,F36*1,F49*1) ->  | F36: =IF(SUM(G36:J36)<=0,0,SUM(G36:J36)) ->  | G36: =Parameter!$C$6*(Parameter!$C$3+Parameter!$C$4)*Parameter!$C$8*D36 -> 0 | H36: =0.5*Parameter!$C$7*D36^3*Parameter!$C$9 -> 0 | I36: =IFERROR((Parameter!$C$3+Parameter!$C$4)*Parameter!$C$6*(D33-D20)/F31*D36,0) -> 0 | J36: =(Parameter!$C$3+Parameter!$C$4)*(D36-D23)/F28 -> 
B37: =A37 -> 0
B38: =A38 -> 0
B39: 0

Sheet Parameter
C1: Bike | D1: Treckingrad | E1: Treckingrad | F1: Treckingrad | G1: Rennrad | H1: Rennrad | I1: MTB
C2: =G2 -> Create normal | D2: Commuter Oberlenker | E2: Commuter Bremsgriffe | F2: Commuter Unterlenker | G2: Create normal | H2: Create TT | I2: MTB
A3: Gewicht Fahrrad | B3: kg | C3: =G3 -> 13.8 | D3: 17.7 | E3: 17.7 | F3: 17.7 | G3: 13.8 | H3: 13.8
A4: Gewicht Fahrer | B4: kg | C4: 74.1 | D4: 73.1 | E4: 73.1 | F4: 73.1 | G4: 74.1 | H4: 74.1
A5: Größe Fahrer | B5: m | C5: 1.86 | D5: 1.86 | E5: 1.86 | F5: 1.86 | G5: 1.86 | H5: 1.86 | I5: 1.86
A6: Gravitationskonstante | B6: m/s2 | C6: 9.8067 | D6: 9.8067 | E6: 9.8067 | F6: 9.8067 | G6: 9.8067 | H6: 9.8067 | I6: 9.8067
A7: Luftdichte ρ | B7: kg/m³ | C7: 1.226 | D7: 1.226 | E7: 1.226 | F7: 1.226 | G7: 1.226 | H7: 1.226 | I7: 1.226
A8: Rollwiderstand Crr | C8: 0.0033 | D8: 0.004 | E8: 0.004 | F8: 0.004 | G8: 0.0033 | H8: 0.0033 | I8: 0.0046
A9: Luftwiderstand Cd * A | C9: 0.2770619566 | D9: 0.3818869246 | E9: 0.3258535819 | F9: 0.2801183758 | G9: 0.2770619566 | H9: 0.2467570125 | I9: 0.5711
A11: Tempo bis 18 km/h | G11: 4.25
A12: Tempo größer 18 km/h | G12: 5.79

Sheet CdA
B1: Create normal | C1: Create TT | D1: Commuter OL | E1: Commuter BG | F1: Commuter UL
A2: Größe | B2: 1.86 | C2: 1.86 | D2: 1.86 | E2: 1.86 | F2: 1.86
A3: Gewicht | B3: 74 | C3: 74 | D3: 74 | E3: 74 | F3: 74
A4: Neigung Öberkörper | B4: 29 | C4: 9 | D4: 46 | E4: 38 | F4: 30
A5: Neigung Sitzrohr | B5: 71 | C5: 71 | D5: 74 | E5: 74 | F5: 74
A6: Schulterbreite | B6: 0.4 | C6: 0.4 | D6: 0.4 | E6: 0.4 | F6: 0.4
A8: A1 | B8: =0.0293*B2^0.725*B3^0.425+0.0604 -> 0.3466120971 | C8: =0.0293*C2^0.725*C3^0.425+0.0604 -> 0.3466120971 | D8: =0.0293*D2^0.725*D3^0.425+0.0604 -> 0.3466120971 | E8: 0.3466120971 | F8: 0.3466120971
A9: A2 | B9: =0.00215*B2+0.18964*B3-0.07861 -> 13.958749 | C9: =0.00215*C2+0.18964*C3-0.07861 -> 13.958749 | D9: =0.00215*D2+0.18964*D3-0.07861 -> 13.958749 | E9: 13.958749 | F9: 13.958749
A10: A3 | B10: =0.00433*B5^0.172*B4^0.096*B3^0.762 -> 0.3308636912 | C10: =0.00433*C5^0.172*C4^0.096*C3^0.762 -> 0.2957101174 | D10: =0.00433*D5^0.172*D4^0.096*D3^0.762 -> 0.3483173234 | E10: 0.3419869609 | F10: 0.3343135375
A11: A4 | B11: =0.00653*B5^0.183*B4^0.099*B3^0.493*B2^1.163 -> 0.3415432076 | C11: =0.00653*C5^0.183*C4^0.099*C3^0.493*C2^1.163 -> 0.3041853258 | D11: =0.00653*D5^0.183*D4^0.099*D3^0.493*D2^1.163 -> 0.3602221411 | E11: 0.3534727625 | F11: 0.3452966637
A12: A5 | B12: =0.0148*B5^0.184*B4^0.099*B3^0.408*B2^0.925*B6^0.426 -> 0.3148431325 | C12: =0.0148*C5^0.184*C4^0.099*C3^0.408*C2^0.925*C6^0.426 -> 0.280405696 | D12: =0.0148*D5^0.184*D4^0.099*D3^0.408*D2^0.925*D6^0.426 -> 0.3320755866 | E12: 0.3258535819 | F12: 0.3183163362
A14: CD | B14: 0.88 | C14: 0.88 | D14: 1.15 | E14: 1 | F14: 0.88
A16: CD*A | B16: =B14*B12 -> 0.2770619566 | C16: =C14*C12 -> 0.2467570125 | D16: =D14*D12 -> 0.3818869246 | E16: 0.3258535819 | F16: 0.2801183758
